[Event "*** Titled Tuesday Blitz"]
[Site "Chess.com"]
[Date "2020.04.28"]
[Round "4"]
[White "SHIVACalypso"]
[Black "arctic_t00"]
[Result "0-1"]
[WhiteElo "2280"]
[BlackElo "2469"]
[TimeControl "180+1"]
[EndTime "10:40:30 PDT"]
[Termination "arctic_t00 won by resignation"]

1. Nf3 {[%clk 0:03:00.9]} 1... Nf6 {[%clk 0:02:59.6]} 2. c4 {[%clk 0:03:01.8]}
2... g6 {[%clk 0:02:59.1]} 3. g3 {[%clk 0:03:02.3]} 3... Bg7 {[%clk 0:02:59.6]}
4. Bg2 {[%clk 0:03:02.8]} 4... O-O {[%clk 0:03:00.2]} 5. O-O {[%clk 0:03:03]}
5... d6 {[%clk 0:03:00.5]} 6. Nc3 {[%clk 0:03:03.4]} 6... e5 {[%clk 0:02:58.9]}
7. d3 {[%clk 0:03:03]} 7... Nc6 {[%clk 0:02:58.1]} 8. Rb1 {[%clk 0:03:03.4]}
8... a5 {[%clk 0:02:58.1]} 9. a3 {[%clk 0:03:03.6]} 9... h6 {[%clk 0:02:58.3]}
10. b4 {[%clk 0:03:03.6]} 10... axb4 {[%clk 0:02:58.7]} 11. axb4 {[%clk
0:03:04.5]} 11... Be6 {[%clk 0:02:58.5]} 12. b5 {[%clk 0:03:04.5]} 12... Ne7
{[%clk 0:02:59]} 13. Bb2 {[%clk 0:03:04.6]} 13... Qd7 {[%clk 0:02:58.3]} 14. Re1
{[%clk 0:03:03]} 14... Bh3 {[%clk 0:02:58.1]} 15. Bh1 {[%clk 0:03:03.2]} 15...
Ng4 {[%clk 0:02:57.6]} 16. Nd2 {[%clk 0:02:58.6]} 16... f5 {[%clk 0:02:51.3]}
17. Bxb7 {[%clk 0:02:54.3]} 17... Ra7 {[%clk 0:02:44.9]} 18. Bf3 {[%clk
0:02:50.6]} 18... Kh7 {[%clk 0:02:18.4]} 19. Ra1 {[%clk 0:02:46.6]} 19... Rxa1
{[%clk 0:02:16.9]} 20. Qxa1 {[%clk 0:02:47.5]} 20... c6 {[%clk 0:01:49.3]} 21.
bxc6 {[%clk 0:02:41.2]} 21... Nxc6 {[%clk 0:01:46.5]} 22. Qa4 {[%clk 0:02:38.3]}
22... e4 {[%clk 0:01:34.1]} 23. dxe4 {[%clk 0:02:32.9]} 23... f4 {[%clk
0:01:18.4]} 24. Rb1 {[%clk 0:01:48.3]} 24... Bd4 {[%clk 0:00:39]} 25. Nd1 {[%clk
0:01:47]} 25... Bc5 {[%clk 0:00:38.2]} 26. Nb3 {[%clk 0:01:21.1]} 26... Qc7
{[%clk 0:00:28.4]} 27. Nxc5 {[%clk 0:01:18.4]} 27... dxc5 {[%clk 0:00:29.3]} 28.
Nc3 {[%clk 0:01:10]} 28... fxg3 {[%clk 0:00:28.2]} 29. hxg3 {[%clk 0:01:09.2]}
29... Nd4 {[%clk 0:00:25.6]} 30. Nd5 {[%clk 0:01:01.6]} 30... Qf7 {[%clk
0:00:17.8]} 31. Bxd4 {[%clk 0:00:59.9]} 31... cxd4 {[%clk 0:00:16.8]} 32. Qc6
{[%clk 0:00:56.2]} 32... Ne5 {[%clk 0:00:11.2]} 33. Qb7 {[%clk 0:00:53.9]} 33...
Bd7 {[%clk 0:00:06]} 34. Ra1 {[%clk 0:00:47.3]} 34... d3 {[%clk 0:00:05.6]} 35.
Ra7 {[%clk 0:00:39.9]} 35... dxe2 {[%clk 0:00:04.5]} 36. Nf6+ {[%clk 0:00:22]}
36... Qxf6 {[%clk 0:00:04.2]} 37. Qxd7+ {[%clk 0:00:20.6]} 37... Nxd7 {[%clk
0:00:05.1]} 38. Rxd7+ {[%clk 0:00:20.8]} 38... Kh8 {[%clk 0:00:06]} 0-1

[Event "*** Titled Tuesday Blitz"]
[Site "Chess.com"]
[Date "2020.04.28"]
[Round "4"]
[White "grandemestregringo"]
[Black "Kezin_Roman"]
[Result "0-1"]
[WhiteElo "2432"]
[BlackElo "2695"]
[TimeControl "180+1"]
[EndTime "10:40:33 PDT"]
[Termination "Kezin_Roman won by resignation"]

1. d4 {[%clk 0:03:00.9]} 1... d5 {[%clk 0:02:59.5]} 2. c4 {[%clk 0:03:01.2]}
2... e6 {[%clk 0:02:59.7]} 3. Nf3 {[%clk 0:03:01.5]} 3... Nf6 {[%clk 0:02:59.7]}
4. g3 {[%clk 0:03:01.8]} 4... Be7 {[%clk 0:03:00.1]} 5. Bg2 {[%clk 0:03:02.4]}
5... O-O {[%clk 0:03:00.6]} 6. O-O {[%clk 0:03:03]} 6... dxc4 {[%clk 0:03:01.2]}
7. Qc2 {[%clk 0:03:03.5]} 7... b5 {[%clk 0:03:00.7]} 8. a4 {[%clk 0:02:58.1]}
8... b4 {[%clk 0:03:00.6]} 9. Ne5 {[%clk 0:02:54]} 9... Qxd4 {[%clk 0:02:48.5]}
10. Bxa8 {[%clk 0:02:07.9]} 10... Qxe5 {[%clk 0:02:46.7]} 11. Qxc4 {[%clk
0:02:04.4]} 11... Ba6 {[%clk 0:02:42.5]} 12. Bf4 {[%clk 0:01:35.9]} 12... Qxb2
{[%clk 0:02:28.4]} 13. Qxc7 {[%clk 0:01:29]} 13... Qxa1 {[%clk 0:01:52.5]} 14.
Qxe7 {[%clk 0:01:28.4]} 14... Bxe2 {[%clk 0:01:49.3]} 15. Re1 {[%clk 0:01:28.1]}
15... Qxa4 {[%clk 0:01:43.7]} 16. Bd6 {[%clk 0:01:01.6]} 16... Nbd7 {[%clk
0:01:23.4]} 17. Bxb4 {[%clk 0:00:43.4]} 17... Rxa8 {[%clk 0:00:41.8]} 18. Nc3
{[%clk 0:00:40.7]} 18... Qb3 {[%clk 0:00:42]} 19. Nxe2 {[%clk 0:00:37]} 19...
Nd5 {[%clk 0:00:31.7]} 20. Qxd7 {[%clk 0:00:36]} 20... Qxb4 {[%clk 0:00:31.1]}
21. Rc1 {[%clk 0:00:35.7]} 21... h6 {[%clk 0:00:26.1]} 22. Kf1 {[%clk
0:00:31.7]} 22... a5 {[%clk 0:00:24.2]} 23. Rc8+ {[%clk 0:00:22.9]} 23... Rxc8
{[%clk 0:00:24.2]} 24. Qxc8+ {[%clk 0:00:23.4]} 24... Qf8 {[%clk 0:00:24.1]} 25.
Qa6 {[%clk 0:00:21.6]} 25... Qd8 {[%clk 0:00:19.5]} 26. Nd4 {[%clk 0:00:19.5]}
26... Nb4 {[%clk 0:00:19.1]} 27. Qc4 {[%clk 0:00:19.1]} 27... Qd5 {[%clk
0:00:17.3]} 28. Qc8+ {[%clk 0:00:18]} 28... Kh7 {[%clk 0:00:17.2]} 29. Qc3
{[%clk 0:00:14.5]} 29... Qh1+ {[%clk 0:00:16.2]} 30. Ke2 {[%clk 0:00:14.5]}
30... Qe4+ {[%clk 0:00:16.8]} 31. Kf1 {[%clk 0:00:13.8]} 31... Nd5 {[%clk
0:00:16.6]} 32. Qc5 {[%clk 0:00:12.4]} 32... a4 {[%clk 0:00:16.2]} 33. f3 {[%clk
0:00:10.4]} 33... Qd3+ {[%clk 0:00:16.2]} 34. Kf2 {[%clk 0:00:09.2]} 34... a3
{[%clk 0:00:17.1]} 35. Ne2 {[%clk 0:00:05.1]} 35... a2 {[%clk 0:00:16.1]} 36.
Qa5 {[%clk 0:00:04.8]} 36... Qb1 {[%clk 0:00:16]} 0-1

[Event "*** Titled Tuesday Blitz"]
[Site "Chess.com"]
[Date "2020.04.28"]
[Round "4"]
[White "CarlosRBorn"]
[Black "abubakrtagelsir"]
[Result "1-0"]
[WhiteElo "2679"]
[BlackElo "2355"]
[TimeControl "180+1"]
[EndTime "10:40:33 PDT"]
[Termination "CarlosRBorn won by resignation"]

1. Nf3 {[%clk 0:03:00.9]} 1... Nf6 {[%clk 0:02:59.5]} 2. g3 {[%clk 0:03:01.1]}
2... g6 {[%clk 0:02:59.6]} 3. Bg2 {[%clk 0:03:01.8]} 3... Bg7 {[%clk 0:02:59.6]}
4. O-O {[%clk 0:03:02.7]} 4... O-O {[%clk 0:02:59.5]} 5. c4 {[%clk 0:03:03.6]}
5... d6 {[%clk 0:02:59.7]} 6. Nc3 {[%clk 0:03:02.9]} 6... a6 {[%clk 0:02:58.8]}
7. Rb1 {[%clk 0:03:02.5]} 7... e5 {[%clk 0:02:58.2]} 8. d3 {[%clk 0:03:01.9]}
8... Nc6 {[%clk 0:02:50.2]} 9. b4 {[%clk 0:03:01.3]} 9... Bg4 {[%clk 0:02:48.6]}
10. a4 {[%clk 0:03:00.1]} 10... a5 {[%clk 0:02:46.9]} 11. bxa5 {[%clk
0:02:58.9]} 11... Nxa5 {[%clk 0:02:45.5]} 12. Bd2 {[%clk 0:02:53.3]} 12... Nd7
{[%clk 0:02:34.1]} 13. Ng5 {[%clk 0:02:40.6]} 13... h6 {[%clk 0:02:28.9]} 14.
Nf3 {[%clk 0:02:25.9]} 14... f5 {[%clk 0:02:28.3]} 15. h3 {[%clk 0:02:24.4]}
15... Bxf3 {[%clk 0:02:27.4]} 16. Bxf3 {[%clk 0:02:24.3]} 16... Nc5 {[%clk
0:02:15.1]} 17. Bg2 {[%clk 0:02:10.7]} 17... c6 {[%clk 0:02:13.8]} 18. Qc2
{[%clk 0:02:05.7]} 18... Ne6 {[%clk 0:02:11]} 19. e3 {[%clk 0:02:05.2]} 19...
Qe7 {[%clk 0:02:01.3]} 20. Ne2 {[%clk 0:01:59.7]} 20... c5 {[%clk 0:01:54.9]}
21. Nc3 {[%clk 0:01:58.5]} 21... Nc6 {[%clk 0:01:53.5]} 22. Nd5 {[%clk
0:01:57.6]} 22... Qf7 {[%clk 0:01:52.5]} 23. f4 {[%clk 0:01:54.6]} 23... exf4
{[%clk 0:01:48.7]} 24. gxf4 {[%clk 0:01:54.5]} 24... Kh8 {[%clk 0:01:48.2]} 25.
Rb6 {[%clk 0:01:50.7]} 25... g5 {[%clk 0:01:39.2]} 26. Rfb1 {[%clk 0:01:18.4]}
26... gxf4 {[%clk 0:01:33.9]} 27. exf4 {[%clk 0:01:18.3]} 27... Ned4 {[%clk
0:01:24.9]} 28. Qd1 {[%clk 0:01:18.3]} 28... Ra7 {[%clk 0:01:19.5]} 29. Kh2
{[%clk 0:01:11.1]} 29... Rg8 {[%clk 0:01:10.4]} 30. a5 {[%clk 0:01:00.7]} 30...
Bf8 {[%clk 0:00:59.3]} 31. Qf1 {[%clk 0:00:53.7]} 31... Qg7 {[%clk 0:00:53.1]}
32. Qf2 {[%clk 0:00:52.7]} 32... Nd8 {[%clk 0:00:38.5]} 33. Bc3 {[%clk 0:00:42]}
33... Be7 {[%clk 0:00:36.8]} 34. Nxe7 {[%clk 0:00:34.4]} 34... Qxe7 {[%clk
0:00:34.5]} 35. Bxd4+ {[%clk 0:00:34.8]} 35... cxd4 {[%clk 0:00:34.3]} 36. Qxd4+
{[%clk 0:00:35.7]} 36... Qg7 {[%clk 0:00:19.5]} 37. Qxg7+ {[%clk 0:00:35.7]}
37... Kxg7 {[%clk 0:00:19.1]} 38. Rxd6 {[%clk 0:00:34.8]} 38... Rxa5 {[%clk
0:00:19.2]} 39. Bd5 {[%clk 0:00:34.9]} 39... Ra2+ {[%clk 0:00:15]} 40. Kh1
{[%clk 0:00:34.5]} 40... Rh8 {[%clk 0:00:14.8]} 41. Rg1+ {[%clk 0:00:34.1]}
41... Kf8 {[%clk 0:00:14.8]} 42. Rxd8+ {[%clk 0:00:33]} 42... Ke7 {[%clk
0:00:15]} 43. Rxh8 {[%clk 0:00:33.9]} 43... Kd6 {[%clk 0:00:14.5]} 44. Rxh6+
{[%clk 0:00:34]} 44... Kc5 {[%clk 0:00:14.6]} 45. Rf6 {[%clk 0:00:34.1]} 1-0

[Event "*** Titled Tuesday Blitz"]
[Site "Chess.com"]
[Date "2020.04.28"]
[Round "4"]
[White "Mykola-Bortnyk"]
[Black "KrolPawel92OnTwitch"]
[Result "0-1"]
[WhiteElo "2928"]
[BlackElo "2658"]
[TimeControl "180+1"]
[EndTime "10:40:34 PDT"]
[Termination "KrolPawel92OnTwitch won on time"]

1. e4 {[%clk 0:03:00.9]} 1... c5 {[%clk 0:02:59.8]} 2. c3 {[%clk 0:03:00.7]}
2... Nf6 {[%clk 0:02:58.5]} 3. e5 {[%clk 0:03:01.1]} 3... Nd5 {[%clk 0:02:58.9]}
4. Bc4 {[%clk 0:03:01.8]} 4... e6 {[%clk 0:02:58.5]} 5. Nf3 {[%clk 0:03:01.3]}
5... Nb6 {[%clk 0:02:55.6]} 6. Bb3 {[%clk 0:03:00.8]} 6... d5 {[%clk 0:02:54.5]}
7. exd6 {[%clk 0:02:48.1]} 7... Bxd6 {[%clk 0:02:53.9]} 8. O-O {[%clk
0:02:47.9]} 8... Nc6 {[%clk 0:02:52.9]} 9. d4 {[%clk 0:02:47]} 9... cxd4 {[%clk
0:02:50.6]} 10. Nxd4 {[%clk 0:02:47.6]} 10... O-O {[%clk 0:02:32.9]} 11. Be3
{[%clk 0:02:33.1]} 11... Nd5 {[%clk 0:02:27.2]} 12. Bxd5 {[%clk 0:02:29.4]}
12... exd5 {[%clk 0:02:27]} 13. Nd2 {[%clk 0:02:29.2]} 13... Re8 {[%clk
0:02:20]} 14. Qc2 {[%clk 0:02:11]} 14... Ne5 {[%clk 0:02:14.9]} 15. h3 {[%clk
0:02:05.4]} 15... Bd7 {[%clk 0:01:50.5]} 16. Rfe1 {[%clk 0:02:00.3]} 16... Qf6
{[%clk 0:01:49.3]} 17. Rad1 {[%clk 0:01:41.9]} 17... a6 {[%clk 0:01:48.4]} 18.
a4 {[%clk 0:01:35.9]} 18... Rac8 {[%clk 0:01:48]} 19. a5 {[%clk 0:01:34.9]}
19... h5 {[%clk 0:01:44.3]} 20. N2f3 {[%clk 0:01:24.5]} 20... Nc4 {[%clk
0:01:34.8]} 21. Bg5 {[%clk 0:01:20.9]} 21... Qg6 {[%clk 0:01:35.2]} 22. Qxg6
{[%clk 0:01:19.9]} 22... fxg6 {[%clk 0:01:36.1]} 23. b4 {[%clk 0:01:18.3]} 23...
Nb2 {[%clk 0:01:22.2]} 24. Rxe8+ {[%clk 0:01:15.6]} 24... Bxe8 {[%clk
0:01:21.1]} 25. Rd2 {[%clk 0:01:11.2]} 25... Na4 {[%clk 0:01:20.8]} 26. Ne2
{[%clk 0:01:02.5]} 26... Bf7 {[%clk 0:01:06.6]} 27. Rd3 {[%clk 0:00:59]} 27...
Nb2 {[%clk 0:01:00.1]} 28. Rd4 {[%clk 0:00:58.7]} 28... Rc4 {[%clk 0:00:57.7]}
29. Rxc4 {[%clk 0:00:56.5]} 29... dxc4 {[%clk 0:00:57.7]} 30. Bf4 {[%clk
0:00:55.9]} 30... Be7 {[%clk 0:00:56]} 31. Ne5 {[%clk 0:00:45.1]} 31... g5
{[%clk 0:00:43.6]} 32. Be3 {[%clk 0:00:42.5]} 32... Bd5 {[%clk 0:00:40.4]} 33.
Ng3 {[%clk 0:00:35.3]} 33... h4 {[%clk 0:00:36.1]} 34. Nf5 {[%clk 0:00:34.8]}
34... Bf6 {[%clk 0:00:36.5]} 35. Bd4 {[%clk 0:00:34.9]} 35... Nd3 {[%clk
0:00:25.4]} 36. Nxd3 {[%clk 0:00:34.9]} 36... cxd3 {[%clk 0:00:25.5]} 37. Kf1
{[%clk 0:00:24.6]} 37... d2 {[%clk 0:00:25.5]} 38. Ke2 {[%clk 0:00:20.5]} 38...
Bxg2 {[%clk 0:00:25.6]} 39. Kxd2 {[%clk 0:00:18.7]} 39... Bxh3 {[%clk
0:00:25.8]} 40. Nd6 {[%clk 0:00:17.2]} 40... Bg2 {[%clk 0:00:24.1]} 41. f4
{[%clk 0:00:14.5]} 41... Bxd4 {[%clk 0:00:22.7]} 42. cxd4 {[%clk 0:00:14.8]}
42... h3 {[%clk 0:00:23.2]} 0-1

[Event "*** Titled Tuesday Blitz"]
[Site "Chess.com"]
[Date "2020.04.28"]
[Round "4"]
[White "SirStrateg"]
[Black "2nd_life"]
[Result "1-0"]
[WhiteElo "2596"]
[BlackElo "2401"]
[TimeControl "180+1"]
[EndTime "10:40:34 PDT"]
[Termination "SirStrateg won on time"]

1. d4 {[%clk 0:03:00.1]} 1... Nf6 {[%clk 0:02:59.7]} 2. Nf3 {[%clk 0:02:59.6]}
2... e6 {[%clk 0:03:00]} 3. Bf4 {[%clk 0:02:59.3]} 3... b6 {[%clk 0:02:57.7]} 4.
a4 {[%clk 0:02:58.5]} 4... Bb7 {[%clk 0:02:55]} 5. e3 {[%clk 0:02:58.7]} 5... a6
{[%clk 0:02:47.7]} 6. Nbd2 {[%clk 0:02:58.3]} 6... c5 {[%clk 0:02:45.9]} 7. Nc4
{[%clk 0:02:57.2]} 7... Bxf3 {[%clk 0:02:27]} 8. Qxf3 {[%clk 0:02:52.2]} 8... d5
{[%clk 0:02:27.1]} 9. Nd2 {[%clk 0:02:48]} 9... Bd6 {[%clk 0:02:23.9]} 10. c3
{[%clk 0:02:43.1]} 10... Bxf4 {[%clk 0:02:21.8]} 11. Qxf4 {[%clk 0:02:43.5]}
11... Nc6 {[%clk 0:02:21.5]} 12. Bd3 {[%clk 0:02:42.5]} 12... O-O {[%clk
0:02:19.9]} 13. O-O {[%clk 0:02:42.6]} 13... Qb8 {[%clk 0:02:16.2]} 14. Qg5
{[%clk 0:02:38.1]} 14... h6 {[%clk 0:02:15.5]} 15. Qh4 {[%clk 0:02:37.8]} 15...
e5 {[%clk 0:02:08.4]} 16. dxe5 {[%clk 0:02:35.9]} 16... Nxe5 {[%clk 0:02:08]}
17. Be2 {[%clk 0:02:35.6]} 17... Rd8 {[%clk 0:01:51.2]} 18. Rfd1 {[%clk
0:02:33.6]} 18... b5 {[%clk 0:01:33.2]} 19. axb5 {[%clk 0:02:32.8]} 19... axb5
{[%clk 0:01:33.3]} 20. Rxa8 {[%clk 0:02:30.5]} 20... Qxa8 {[%clk 0:01:34.2]} 21.
Bxb5 {[%clk 0:02:30.7]} 21... Rb8 {[%clk 0:01:20.5]} 22. c4 {[%clk 0:02:28.1]}
22... dxc4 {[%clk 0:00:59.9]} 23. Nxc4 {[%clk 0:02:23.5]} 23... Ng6 {[%clk
0:00:55.3]} 24. Qg3 {[%clk 0:01:56.5]} 24... Rxb5 {[%clk 0:00:54.9]} 25. Qc7
{[%clk 0:01:52.9]} 25... Qe4 {[%clk 0:00:50.1]} 26. Nd6 {[%clk 0:01:49.8]} 26...
Qc2 {[%clk 0:00:38]} 27. Qxf7+ {[%clk 0:01:40.5]} 27... Kh7 {[%clk 0:00:37.6]}
28. Rf1 {[%clk 0:01:40.3]} 28... Qxb2 {[%clk 0:00:35.1]} 29. Nxb5 {[%clk
0:01:38]} 29... Qxb5 {[%clk 0:00:34.4]} 30. Rc1 {[%clk 0:01:31.5]} 30... Ne5
{[%clk 0:00:32.9]} 31. Qa2 {[%clk 0:01:25.2]} 31... Nd3 {[%clk 0:00:32]} 32. Qc2
{[%clk 0:01:25.4]} 32... Kh8 {[%clk 0:00:30]} 33. Rb1 {[%clk 0:01:24.2]} 33...
Nb4 {[%clk 0:00:27.4]} 34. Qf5 {[%clk 0:01:22.5]} 34... Qd3 {[%clk 0:00:23.7]}
35. Qc8+ {[%clk 0:01:22.6]} 35... Kh7 {[%clk 0:00:23.5]} 36. Rc1 {[%clk
0:01:22.6]} 36... Qd2 {[%clk 0:00:20.8]} 37. Qxc5 {[%clk 0:01:20.3]} 37... Nd3
{[%clk 0:00:19.9]} 38. Qf5+ {[%clk 0:01:19.8]} 38... Kg8 {[%clk 0:00:16.8]} 39.
Rf1 {[%clk 0:01:13.5]} 39... Qe2 {[%clk 0:00:13.7]} 40. h3 {[%clk 0:01:08.1]}
40... h5 {[%clk 0:00:12.7]} 41. Rb1 {[%clk 0:01:04.9]} 41... Qc2 {[%clk
0:00:08.3]} 42. Rb8+ {[%clk 0:01:04.6]} 42... Kf7 {[%clk 0:00:08]} 43. Rb7+
{[%clk 0:01:03.1]} 43... Kg8 {[%clk 0:00:08.3]} 44. Rb8+ {[%clk 0:00:47]} 44...
Kf7 {[%clk 0:00:07.9]} 45. Rc8 {[%clk 0:00:43.8]} 45... Qb1+ {[%clk 0:00:02.6]}
46. Kh2 {[%clk 0:00:44.1]} 46... Qd1 {[%clk 0:00:01.3]} 47. Rd8 {[%clk
0:00:38.8]} 1-0

[Event "*** Titled Tuesday Blitz"]
[Site "Chess.com"]
[Date "2020.04.28"]
[Round "4"]
[White "Bubar"]
[Black "Duong57"]
[Result "1/2-1/2"]
[WhiteElo "2327"]
[BlackElo "2194"]
[TimeControl "180+1"]
[EndTime "10:40:34 PDT"]
[Termination "Game drawn by repetition"]

1. d4 {[%clk 0:03:00.9]} 1... d5 {[%clk 0:02:59.1]} 2. Nf3 {[%clk 0:02:59.4]}
2... Nf6 {[%clk 0:02:58.4]} 3. c4 {[%clk 0:02:58.9]} 3... c6 {[%clk 0:02:57.7]}
4. Nc3 {[%clk 0:02:58.8]} 4... e6 {[%clk 0:02:57.2]} 5. Bg5 {[%clk 0:02:54.5]}
5... Be7 {[%clk 0:02:56.6]} 6. e3 {[%clk 0:02:53.5]} 6... Nbd7 {[%clk
0:02:55.7]} 7. Qc2 {[%clk 0:02:53.2]} 7... h6 {[%clk 0:02:53.5]} 8. Bxf6 {[%clk
0:02:51.7]} 8... Nxf6 {[%clk 0:02:52.8]} 9. O-O-O {[%clk 0:02:51.4]} 9... dxc4
{[%clk 0:02:19.8]} 10. Bxc4 {[%clk 0:02:47.6]} 10... b5 {[%clk 0:02:20.7]} 11.
Bd3 {[%clk 0:02:47.2]} 11... Bd7 {[%clk 0:02:18.5]} 12. h4 {[%clk 0:02:45.3]}
12... a5 {[%clk 0:02:17.6]} 13. Ne4 {[%clk 0:02:44.4]} 13... Nxe4 {[%clk
0:02:14.6]} 14. Bxe4 {[%clk 0:02:44.2]} 14... Rc8 {[%clk 0:02:14.9]} 15. Ne5
{[%clk 0:02:34.4]} 15... Qb6 {[%clk 0:01:51.1]} 16. Nd3 {[%clk 0:02:28.2]} 16...
c5 {[%clk 0:01:44.4]} 17. dxc5 {[%clk 0:02:25.1]} 17... Bxc5 {[%clk 0:01:43]}
18. Kb1 {[%clk 0:02:24.6]} 18... O-O {[%clk 0:01:38.2]} 19. Qe2 {[%clk
0:02:21.4]} 19... Rfd8 {[%clk 0:01:35.6]} 20. Rc1 {[%clk 0:02:20.2]} 20... Be7
{[%clk 0:01:34.3]} 21. g3 {[%clk 0:02:16.7]} 21... Bf6 {[%clk 0:01:33.7]} 22.
Rxc8 {[%clk 0:02:10.9]} 22... Rxc8 {[%clk 0:01:33.2]} 23. Rc1 {[%clk 0:02:10.5]}
23... b4 {[%clk 0:01:32]} 24. Rxc8+ {[%clk 0:02:09.3]} 24... Bxc8 {[%clk
0:01:32.3]} 25. Qc2 {[%clk 0:02:08.3]} 25... Ba6 {[%clk 0:01:25.1]} 26. Nc5
{[%clk 0:01:53.3]} 26... Bb5 {[%clk 0:01:25.2]} 27. Bd3 {[%clk 0:01:46]} 27...
Bxd3 {[%clk 0:01:25]} 28. Nxd3 {[%clk 0:01:44.8]} 28... Qb7 {[%clk 0:01:23.1]}
29. Nc1 {[%clk 0:01:38.2]} 29... g6 {[%clk 0:01:21.8]} 30. h5 {[%clk 0:01:37.1]}
30... Kg7 {[%clk 0:01:20.5]} 31. hxg6 {[%clk 0:01:36.7]} 31... fxg6 {[%clk
0:01:20.4]} 32. Nb3 {[%clk 0:01:23.5]} 32... a4 {[%clk 0:01:17]} 33. Nc1 {[%clk
0:01:22]} 33... a3 {[%clk 0:01:15.4]} 34. bxa3 {[%clk 0:01:19.1]} 34... bxa3+
{[%clk 0:01:14.9]} 35. Nb3 {[%clk 0:01:16.7]} 35... h5 {[%clk 0:01:12.7]} 36. e4
{[%clk 0:01:14.3]} 36... Bb2 {[%clk 0:01:10.1]} 37. f4 {[%clk 0:01:12.8]} 37...
Qb5 {[%clk 0:01:06.8]} 38. Nc1 {[%clk 0:01:08.8]} 38... Bc3+ {[%clk 0:00:44.7]}
39. Qb3 {[%clk 0:01:03.8]} 39... Qc5 {[%clk 0:00:39.7]} 40. Ne2 {[%clk
0:00:57.3]} 40... Bb2 {[%clk 0:00:38.7]} 41. Qd3 {[%clk 0:00:50]} 41... Qb4
{[%clk 0:00:31.1]} 42. Kc2 {[%clk 0:00:47.3]} 42... Qc5+ {[%clk 0:00:30.6]} 43.
Kb3 {[%clk 0:00:45.5]} 43... Kh6 {[%clk 0:00:29.6]} 44. Qc4 {[%clk 0:00:34.9]}
44... Qb6+ {[%clk 0:00:29.1]} 45. Kc2 {[%clk 0:00:34.3]} 45... Qe3 {[%clk
0:00:22]} 46. Qd3 {[%clk 0:00:33.3]} 46... Qc5+ {[%clk 0:00:21.7]} 47. Kb3
{[%clk 0:00:32.7]} 47... Qb6+ {[%clk 0:00:21.2]} 48. Kc2 {[%clk 0:00:32.8]}
48... Qc5+ {[%clk 0:00:20.9]} 49. Kb3 {[%clk 0:00:32.6]} 49... Qb6+ {[%clk
0:00:21]} 50. Kc2 {[%clk 0:00:33]} 50... Qc5+ {[%clk 0:00:21]} 1/2-1/2

[Event "*** Titled Tuesday Blitz"]
[Site "Chess.com"]
[Date "2020.04.28"]
[Round "4"]
[White "LiemLe"]
[Black "ElGasanov"]
[Result "1-0"]
[WhiteElo "3002"]
[BlackElo "2726"]
[TimeControl "180+1"]
[EndTime "10:40:35 PDT"]
[Termination "LiemLe won by resignation"]

1. d4 {[%clk 0:03:00.9]} 1... d5 {[%clk 0:02:55.7]} 2. c4 {[%clk 0:03:00.5]}
2... e6 {[%clk 0:02:56]} 3. Nf3 {[%clk 0:02:59.8]} 3... c6 {[%clk 0:02:48.1]} 4.
g3 {[%clk 0:02:57.8]} 4... Nf6 {[%clk 0:02:45.4]} 5. Bg2 {[%clk 0:02:57.7]} 5...
b6 {[%clk 0:02:43.5]} 6. O-O {[%clk 0:02:57.3]} 6... Bb7 {[%clk 0:02:42.6]} 7.
Nc3 {[%clk 0:02:54.2]} 7... Be7 {[%clk 0:02:40.9]} 8. Nd2 {[%clk 0:02:49.9]}
8... O-O {[%clk 0:02:37.2]} 9. e4 {[%clk 0:02:49.5]} 9... Na6 {[%clk 0:02:36.7]}
10. Re1 {[%clk 0:02:42.7]} 10... Rc8 {[%clk 0:02:31.7]} 11. e5 {[%clk
0:02:25.6]} 11... Nd7 {[%clk 0:02:30.1]} 12. a3 {[%clk 0:02:25]} 12... Nc7
{[%clk 0:02:26.4]} 13. cxd5 {[%clk 0:02:17.7]} 13... Nxd5 {[%clk 0:02:19.6]} 14.
h4 {[%clk 0:01:56.5]} 14... Nxc3 {[%clk 0:02:08.3]} 15. bxc3 {[%clk 0:01:57.4]}
15... Qc7 {[%clk 0:02:08.6]} 16. Ne4 {[%clk 0:01:54.1]} 16... c5 {[%clk
0:02:07.8]} 17. Qg4 {[%clk 0:01:53.4]} 17... Kh8 {[%clk 0:01:59.9]} 18. Bg5
{[%clk 0:01:50.2]} 18... Bxe4 {[%clk 0:01:46.7]} 19. Bxe7 {[%clk 0:01:38.2]}
19... Bf5 {[%clk 0:01:40.9]} 20. Qe2 {[%clk 0:01:33.5]} 20... Rfe8 {[%clk
0:01:23.4]} 21. Bd6 {[%clk 0:01:32.8]} 21... Qd8 {[%clk 0:01:23.9]} 22. g4
{[%clk 0:01:33.1]} 22... cxd4 {[%clk 0:01:15.9]} 23. gxf5 {[%clk 0:01:33.2]}
23... dxc3 {[%clk 0:01:13.9]} 24. Qh5 {[%clk 0:01:06.4]} 24... g6 {[%clk
0:01:06.4]} 25. fxg6 {[%clk 0:01:06.1]} 25... fxg6 {[%clk 0:01:07.3]} 26. Qh6
{[%clk 0:01:04.7]} 26... Rc4 {[%clk 0:01:04.3]} 27. Re4 {[%clk 0:01:00.3]} 27...
Qc8 {[%clk 0:00:53.6]} 28. Rc1 {[%clk 0:00:59.5]} 28... Rxe4 {[%clk 0:00:49.3]}
29. Bxe4 {[%clk 0:01:00.4]} 29... Qc4 {[%clk 0:00:49.5]} 30. Qe3 {[%clk
0:00:54.9]} 30... Rc8 {[%clk 0:00:48.1]} 31. Bb4 {[%clk 0:00:49.5]} 31... Nc5
{[%clk 0:00:42.3]} 32. Rxc3 {[%clk 0:00:47.2]} 32... Qa2 {[%clk 0:00:40.1]} 33.
Bxc5 {[%clk 0:00:44.1]} 33... bxc5 {[%clk 0:00:39.8]} 34. Qf3 {[%clk 0:00:42.9]}
34... Kg8 {[%clk 0:00:35.6]} 35. Qg3 {[%clk 0:00:22.5]} 35... Rf8 {[%clk
0:00:33.2]} 36. Bxg6 {[%clk 0:00:19.9]} 36... Kh8 {[%clk 0:00:26.9]} 37. h5
{[%clk 0:00:11.9]} 37... hxg6 {[%clk 0:00:25.9]} 38. hxg6 {[%clk 0:00:12.8]}
38... Kg8 {[%clk 0:00:19.9]} 39. Qh4 {[%clk 0:00:11.9]} 39... Qa1+ {[%clk
0:00:18.9]} 40. Kg2 {[%clk 0:00:11.9]} 40... Rxf2+ {[%clk 0:00:10.9]} 41. Qxf2
{[%clk 0:00:12.8]} 1-0